[Event "Titled Tuesday Blitz June 13 Early 2023"]
[White "Petrova, Irina"]
[Black "Czerw, Dawid"]
[WhiteFideId "14124122"]
[BlackFideId "1145746"]
[WhiteElo "2084"]
[BlackElo "2144"]
[Result "0-1"]
[Round "4"]
[TimeControl "180+2"]
[Date "2023.06.13"]
[WhiteClock "0:00:06"]
[BlackClock "0:00:18"]
[Board "122"]

1. e4 {[%clk 0:03:00]}  c5 {[%clk 0:03:00]} 2. Nf3 {[%clk 0:02:58]}  Nc6 {[%clk 0:03:01]} 3. Bb5 {[%clk 0:02:58]}  e6 {[%clk 0:03:01]} 4. Bxc6 {[%clk 0:02:58]}  bxc6 {[%clk 0:03:02]} 5. O-O {[%clk 0:02:53]}  Ne7 {[%clk 0:03:02]} 6. d4 {[%clk 0:02:45]}  cxd4 {[%clk 0:03:00]} 7. Qxd4 {[%clk 0:02:46]}  Qb6 {[%clk 0:02:50]} 8. Qa4 {[%clk 0:02:46]}  Ng6 {[%clk 0:02:45]} 9. Be3 {[%clk 0:02:42]}  Qxb2 {[%clk 0:02:39]} 10. Nbd2 {[%clk 0:02:42]}  Qb4 {[%clk 0:02:32]} 11. Qb3 {[%clk 0:02:35]}  Be7 {[%clk 0:02:19]} 12. Qd3 {[%clk 0:02:16]}  O-O {[%clk 0:02:13]} 13. e5 {[%clk 0:02:00]}  Qa5 {[%clk 0:02:08]} 14. Rfe1 {[%clk 0:01:50]}  Nxe5 {[%clk 0:01:45]} 15. Nxe5 {[%clk 0:01:49]}  Qxe5 {[%clk 0:01:45]} 16. Bxa7 {[%clk 0:01:46]}  Qc7 {[%clk 0:01:40]} 17. Bd4 {[%clk 0:01:39]}  d5 {[%clk 0:01:32]} 18. Nf3 {[%clk 0:01:34]}  f6 {[%clk 0:01:29]} 19. Bc3 {[%clk 0:01:12]}  e5 {[%clk 0:01:24]} 20. Nh4 {[%clk 0:01:04]}  e4 {[%clk 0:01:13]} 21. Qd4 {[%clk 0:01:01]}  g5 {[%clk 0:00:59]} 22. Nf3 {[%clk 0:00:18]}  exf3 {[%clk 0:00:57]} 23. h4 {[%clk 0:00:19]}  Bd6 {[%clk 0:00:50]} 24. hxg5 {[%clk 0:00:18]}  Be5 {[%clk 0:00:50]} 25. Qd2 {[%clk 0:00:17]}  Bxc3 {[%clk 0:00:46]} 26. Qxc3 {[%clk 0:00:18]}  Qg7 {[%clk 0:00:40]} 27. Qxc6 {[%clk 0:00:16]}  Qxg5 {[%clk 0:00:37]} 28. g3 {[%clk 0:00:14]}  Bg4 {[%clk 0:00:32]} 29. Re7 {[%clk 0:00:14]}  Qh5 {[%clk 0:00:25]} 30. Qb7 {[%clk 0:00:10]}  Qh3 {[%clk 0:00:20]} 31. Rg7+ {[%clk 0:00:09]}  Kh8 {[%clk 0:00:20]} 32. Rxh7+ {[%clk 0:00:07]}  Qxh7 {[%clk 0:00:20]} 33. Qxd5 {[%clk 0:00:06]}  Qh3 {[%clk 0:00:18]} 0-1


[Site "https://www.chess.com"]

[Event "Titled Tuesday Blitz June 13 Early 2023"]
[White "Rosenberg, Evan S"]
[Black "Gontcharov, Vladislav"]
[WhiteFideId "2019299"]
[BlackFideId "4123492"]
[WhiteElo "2368"]
[BlackElo "2420"]
[Result "0-1"]
[Round "4"]
[TimeControl "180+2"]
[Date "2023.06.13"]
[WhiteClock "0:00:14"]
[BlackClock "0:01:09"]
[Board "123"]

1. d4 {[%clk 0:03:00]}  Nf6 {[%clk 0:02:59]} 2. Bg5 {[%clk 0:03:00]}  e6 {[%clk 0:02:58]} 3. e4 {[%clk 0:03:00]}  d5 {[%clk 0:02:58]} 4. Nd2 {[%clk 0:02:50]}  h6 {[%clk 0:02:57]} 5. Bxf6 {[%clk 0:02:50]}  Qxf6 {[%clk 0:02:56]} 6. c3 {[%clk 0:02:49]}  Qd8 {[%clk 0:02:38]} 7. Bd3 {[%clk 0:02:46]}  c5 {[%clk 0:02:38]} 8. e5 {[%clk 0:02:40]}  Nc6 {[%clk 0:02:35]} 9. Ngf3 {[%clk 0:02:38]}  cxd4 {[%clk 0:02:35]} 10. cxd4 {[%clk 0:02:38]}  Qb6 {[%clk 0:02:35]} 11. O-O {[%clk 0:02:31]}  Bd7 {[%clk 0:02:34]} 12. Nb3 {[%clk 0:02:23]}  Be7 {[%clk 0:02:23]} 13. Rc1 {[%clk 0:02:23]}  Rc8 {[%clk 0:02:16]} 14. Re1 {[%clk 0:02:16]}  Na5 {[%clk 0:02:16]} 15. Rxc8+ {[%clk 0:02:14]}  Bxc8 {[%clk 0:02:16]} 16. Nxa5 {[%clk 0:02:13]}  Qxa5 {[%clk 0:02:16]} 17. a3 {[%clk 0:02:07]}  Bd7 {[%clk 0:02:14]} 18. Qd2 {[%clk 0:02:05]}  Qxd2 {[%clk 0:02:08]} 19. Nxd2 {[%clk 0:02:05]}  O-O {[%clk 0:02:08]} 20. f4 {[%clk 0:02:06]}  Rc8 {[%clk 0:02:08]} 21. Kf2 {[%clk 0:02:03]}  Kf8 {[%clk 0:02:00]} 22. Ke3 {[%clk 0:01:56]}  Bd8 {[%clk 0:01:57]} 23. Nb3 {[%clk 0:01:53]}  Bb6 {[%clk 0:01:56]} 24. Rc1 {[%clk 0:01:51]}  Rxc1 {[%clk 0:01:54]} 25. Nxc1 {[%clk 0:01:51]}  f6 {[%clk 0:01:55]} 26. b4 {[%clk 0:01:47]}  fxe5 {[%clk 0:01:53]} 27. fxe5 {[%clk 0:01:47]}  Bd8 {[%clk 0:01:53]} 28. Nb3 {[%clk 0:01:38]}  b6 {[%clk 0:01:53]} 29. g3 {[%clk 0:01:38]}  Ba4 {[%clk 0:01:48]} 30. Nd2 {[%clk 0:01:38]}  Bg5+ {[%clk 0:01:46]} 31. Ke2 {[%clk 0:01:38]}  Be8 {[%clk 0:01:43]} 32. h4 {[%clk 0:01:37]}  Bh5+ {[%clk 0:01:42]} 33. Ke1 {[%clk 0:01:35]}  Be3 {[%clk 0:01:42]} 34. Nb3 {[%clk 0:01:29]}  Ke7 {[%clk 0:01:38]} 35. Be2 {[%clk 0:01:29]}  Bg6 {[%clk 0:01:36]} 36. Bd1 {[%clk 0:01:27]}  Bd3 {[%clk 0:01:35]} 37. g4 {[%clk 0:00:51]}  g5 {[%clk 0:01:31]} 38. hxg5 {[%clk 0:00:39]}  hxg5 {[%clk 0:01:31]} 39. a4 {[%clk 0:00:37]}  Kd7 {[%clk 0:01:21]} 40. a5 {[%clk 0:00:37]}  Kc7 {[%clk 0:01:20]} 41. axb6+ {[%clk 0:00:37]}  axb6 {[%clk 0:01:19]} 42. Be2 {[%clk 0:00:34]}  Bc2 {[%clk 0:01:19]} 43. Na1 {[%clk 0:00:26]}  Ba4 {[%clk 0:01:17]} 44. Bd1 {[%clk 0:00:26]}  Bxd1 {[%clk 0:01:16]} 45. Kxd1 {[%clk 0:00:26]}  Bxd4 {[%clk 0:01:17]} 46. Nb3 {[%clk 0:00:21]}  Bxe5 {[%clk 0:01:17]} 47. Kc2 {[%clk 0:00:20]}  Kc6 {[%clk 0:01:13]} 48. Nd2 {[%clk 0:00:16]}  Bf4 {[%clk 0:01:13]} 49. Nf3 {[%clk 0:00:16]}  e5 {[%clk 0:01:13]} 50. Kc3 {[%clk 0:00:14]}  Kd6 {[%clk 0:01:09]} 0-1


[Site "https://www.chess.com"]

[Event "Titled Tuesday Blitz June 13 Early 2023"]
[White "Aloma Vidal, Robert"]
[Black "Bashirli, Saadat"]
[WhiteFideId "2260409"]
[BlackFideId "13429990"]
[WhiteElo "2435"]
[BlackElo "1408"]
[Result "1-0"]
[Round "4"]
[TimeControl "180+2"]
[Date "2023.06.13"]
[WhiteClock "0:00:14"]
[BlackClock "0:00:00"]
[Board "124"]

1. e4 {[%clk 0:03:00]}  c5 {[%clk 0:02:59]} 2. c3 {[%clk 0:03:00]}  Nf6 {[%clk 0:02:58]} 3. e5 {[%clk 0:03:01]}  Nd5 {[%clk 0:02:58]} 4. Nf3 {[%clk 0:03:02]}  g6 {[%clk 0:02:53]} 5. Bc4 {[%clk 0:03:00]}  Nb6 {[%clk 0:02:53]} 6. Bb3 {[%clk 0:03:01]}  c4 {[%clk 0:02:50]} 7. Bc2 {[%clk 0:03:00]}  Bg7 {[%clk 0:02:50]} 8. a4 {[%clk 0:02:54]}  a5 {[%clk 0:02:47]} 9. O-O {[%clk 0:02:49]}  Nc6 {[%clk 0:02:45]} 10. Re1 {[%clk 0:02:49]}  O-O {[%clk 0:02:45]} 11. d4 {[%clk 0:02:47]}  cxd3 {[%clk 0:02:44]} 12. Qxd3 {[%clk 0:02:47]}  d6 {[%clk 0:02:42]} 13. exd6 {[%clk 0:02:47]}  exd6 {[%clk 0:02:39]} 14. Bg5 {[%clk 0:02:45]}  Qc7 {[%clk 0:02:36]} 15. Na3 {[%clk 0:02:42]}  Bf5 {[%clk 0:02:23]} 16. Qd2 {[%clk 0:02:42]}  Bxc2 {[%clk 0:02:19]} 17. Qxc2 {[%clk 0:02:42]}  Rac8 {[%clk 0:02:14]} 18. Nb5 {[%clk 0:02:41]}  Qb8 {[%clk 0:02:15]} 19. Rad1 {[%clk 0:02:24]}  d5 {[%clk 0:02:13]} 20. Bh4 {[%clk 0:02:19]}  Rfe8 {[%clk 0:02:03]} 21. Bg3 {[%clk 0:02:18]}  Ne5 {[%clk 0:01:55]} 22. Nfd4 {[%clk 0:01:56]}  Rcd8 {[%clk 0:01:34]} 23. Re2 {[%clk 0:01:56]}  Qc8 {[%clk 0:01:32]} 24. Rde1 {[%clk 0:01:54]}  Nc6 {[%clk 0:01:22]} 25. Nb3 {[%clk 0:01:33]}  Rxe2 {[%clk 0:01:07]} 26. Qxe2 {[%clk 0:01:30]}  Nxa4 {[%clk 0:01:06]} 27. Ra1 {[%clk 0:01:20]}  Nb6 {[%clk 0:01:00]} 28. Nxa5 {[%clk 0:01:20]}  Re8 {[%clk 0:00:57]} 29. Qf1 {[%clk 0:01:17]}  Nxa5 {[%clk 0:00:54]} 30. Nd6 {[%clk 0:01:10]}  Qd7 {[%clk 0:00:24]} 31. Nxe8 {[%clk 0:01:10]}  Nb3 {[%clk 0:00:23]} 32. Re1 {[%clk 0:00:59]}  Bh8 {[%clk 0:00:14]} 33. Qd3 {[%clk 0:00:50]}  Nc5 {[%clk 0:00:12]} 34. Qf3 {[%clk 0:00:44]}  Ne4 {[%clk 0:00:10]} 35. Nc7 {[%clk 0:00:32]}  Ng5 {[%clk 0:00:08]} 36. Qd3 {[%clk 0:00:20]}  Bf6 {[%clk 0:00:05]} 37. Qb5 {[%clk 0:00:18]}  Qf5 {[%clk 0:00:03]} 38. Ne8 {[%clk 0:00:15]}  Nd7 {[%clk 0:00:00]} 39. Qxd7 {[%clk 0:00:14]} 1-0


[Site "https://www.chess.com"]

[Event "Titled Tuesday Blitz June 13 Early 2023"]
[White "Ciuffoletti, Paolo"]
[Black "Yelisieiev, Yevhenii"]
[WhiteFideId "807630"]
[BlackFideId "14139642"]
[WhiteElo "2143"]
[BlackElo "2403"]
[Result "0-1"]
[Round "4"]
[TimeControl "180+2"]
[Date "2023.06.13"]
[WhiteClock "0:00:00"]
[BlackClock "0:00:08"]
[Board "127"]

1. e4 {[%clk 0:03:00]}  d6 {[%clk 0:03:00]} 2. d4 {[%clk 0:02:59]}  Nf6 {[%clk 0:03:01]} 3. Nc3 {[%clk 0:02:58]}  e5 {[%clk 0:03:01]} 4. dxe5 {[%clk 0:02:57]}  dxe5 {[%clk 0:03:02]} 5. Qxd8+ {[%clk 0:02:57]}  Kxd8 {[%clk 0:03:02]} 6. Bg5 {[%clk 0:02:56]}  c6 {[%clk 0:02:56]} 7. O-O-O+ {[%clk 0:02:47]}  Ke8 {[%clk 0:02:55]} 8. Nf3 {[%clk 0:02:32]}  Nbd7 {[%clk 0:02:54]} 9. Bxf6 {[%clk 0:02:17]}  gxf6 {[%clk 0:02:53]} 10. Nh4 {[%clk 0:02:08]}  Nc5 {[%clk 0:02:42]} 11. f3 {[%clk 0:01:55]}  b5 {[%clk 0:02:33]} 12. Nf5 {[%clk 0:01:27]}  Bxf5 {[%clk 0:02:28]} 13. exf5 {[%clk 0:01:26]}  a5 {[%clk 0:02:11]} 14. Be2 {[%clk 0:01:01]}  h5 {[%clk 0:02:02]} 15. Kb1 {[%clk 0:00:56]}  Rd8 {[%clk 0:01:50]} 16. Rxd8+ {[%clk 0:00:54]}  Kxd8 {[%clk 0:01:50]} 17. Rd1+ {[%clk 0:00:52]}  Kc7 {[%clk 0:01:48]} 18. Ne4 {[%clk 0:00:47]}  Be7 {[%clk 0:01:38]} 19. a3 {[%clk 0:00:36]}  h4 {[%clk 0:01:33]} 20. h3 {[%clk 0:00:34]}  Rg8 {[%clk 0:01:31]} 21. Bf1 {[%clk 0:00:28]}  Nd7 {[%clk 0:01:07]} 22. Nf2 {[%clk 0:00:25]}  Nb6 {[%clk 0:01:02]} 23. Ng4 {[%clk 0:00:24]}  Rg5 {[%clk 0:00:46]} 24. Bd3 {[%clk 0:00:23]}  b4 {[%clk 0:00:36]} 25. axb4 {[%clk 0:00:22]}  axb4 {[%clk 0:00:32]} 26. Be4 {[%clk 0:00:20]}  Nc4 {[%clk 0:00:30]} 27. b3 {[%clk 0:00:18]}  Nd6 {[%clk 0:00:27]} 28. Kb2 {[%clk 0:00:15]}  Nb5 {[%clk 0:00:26]} 29. Ra1 {[%clk 0:00:13]}  Rg8 {[%clk 0:00:25]} 30. Ra6 {[%clk 0:00:12]}  Nd4 {[%clk 0:00:21]} 31. Ra7+ {[%clk 0:00:11]}  Kd6 {[%clk 0:00:20]} 32. Bd3 {[%clk 0:00:09]}  Rg5 {[%clk 0:00:19]} 33. Bc4 {[%clk 0:00:08]}  Nxf5 {[%clk 0:00:18]} 34. Bxf7 {[%clk 0:00:07]}  Nd4 {[%clk 0:00:18]} 35. Bc4 {[%clk 0:00:07]}  f5 {[%clk 0:00:18]} 36. Nh6 {[%clk 0:00:04]}  Rxg2 {[%clk 0:00:15]} 37. Nf7+ {[%clk 0:00:04]}  Kc5 {[%clk 0:00:13]} 38. Rxe7 {[%clk 0:00:04]}  Rxc2+ {[%clk 0:00:13]} 39. Kb1 {[%clk 0:00:04]}  Rh2 {[%clk 0:00:10]} 40. Rxe5+ {[%clk 0:00:04]}  Kb6 {[%clk 0:00:10]} 41. Re8 {[%clk 0:00:02]}  Rxh3 {[%clk 0:00:09]} 42. Ne5 {[%clk 0:00:02]}  Rh1+ {[%clk 0:00:08]} 43. Kb2 {[%clk 0:00:01]}  h3 {[%clk 0:00:08]} 44. Nd7+ {[%clk 0:00:00]}  Kc7 {[%clk 0:00:08]} 0-1


[Site "https://www.chess.com"]

[Event "Titled Tuesday Blitz June 13 Early 2023"]
[White "Aditya Mittal"]
[Black "Ansh M Shah"]
[WhiteFideId "35042025"]
[BlackFideId "25033379"]
[WhiteElo "2421"]
[BlackElo "2084"]
[Result "1-0"]
[Round "4"]
[TimeControl "180+2"]
[Date "2023.06.13"]
[WhiteClock "0:01:52"]
[BlackClock "0:00:08"]
[Board "128"]

1. d4 {[%clk 0:03:00]}  c6 {[%clk 0:03:00]} 2. c4 {[%clk 0:03:01]}  d5 {[%clk 0:03:01]} 3. Nc3 {[%clk 0:03:02]}  Nf6 {[%clk 0:03:01]} 4. cxd5 {[%clk 0:03:02]}  cxd5 {[%clk 0:03:01]} 5. f3 {[%clk 0:03:03]}  Bf5 {[%clk 0:03:00]} 6. Bg5 {[%clk 0:03:01]}  e6 {[%clk 0:02:59]} 7. e4 {[%clk 0:02:56]}  dxe4 {[%clk 0:01:52]} 8. fxe4 {[%clk 0:02:53]}  Bxe4 {[%clk 0:01:43]} 9. Nxe4 {[%clk 0:02:47]}  Bb4+ {[%clk 0:01:43]} 10. Nc3 {[%clk 0:02:39]}  Qa5 {[%clk 0:01:38]} 11. Bxf6 {[%clk 0:02:34]}  Bxc3+ {[%clk 0:01:33]} 12. bxc3 {[%clk 0:02:35]}  Qxc3+ {[%clk 0:01:34]} 13. Kf2 {[%clk 0:02:36]}  Qb2+ {[%clk 0:01:21]} 14. Be2 {[%clk 0:02:36]}  gxf6 {[%clk 0:01:17]} 15. Nf3 {[%clk 0:02:36]}  Nc6 {[%clk 0:01:13]} 16. Qb1 {[%clk 0:02:07]}  Qxb1 {[%clk 0:00:38]} 17. Raxb1 {[%clk 0:02:08]}  O-O-O {[%clk 0:00:37]} 18. Rhc1 {[%clk 0:02:04]}  Rd5 {[%clk 0:00:32]} 19. Ba6 {[%clk 0:01:58]}  bxa6 {[%clk 0:00:19]} 20. Rxc6+ {[%clk 0:01:58]}  Kd7 {[%clk 0:00:20]} 21. Rxa6 {[%clk 0:01:59]}  Rc8 {[%clk 0:00:17]} 22. Rxa7+ {[%clk 0:01:55]}  Kd6 {[%clk 0:00:14]} 23. Rb6+ {[%clk 0:01:55]}  Rc6 {[%clk 0:00:15]} 24. Rxc6+ {[%clk 0:01:55]}  Kxc6 {[%clk 0:00:16]} 25. Rxf7 {[%clk 0:01:55]}  f5 {[%clk 0:00:16]} 26. Rxh7 {[%clk 0:01:56]}  Ra5 {[%clk 0:00:15]} 27. h4 {[%clk 0:01:55]}  Rxa2+ {[%clk 0:00:14]} 28. Kg3 {[%clk 0:01:56]}  f4+ {[%clk 0:00:14]} 29. Kh3 {[%clk 0:01:54]}  Kd5 {[%clk 0:00:13]} 30. Rh5+ {[%clk 0:01:50]}  Ke4 {[%clk 0:00:14]} 31. Re5+ {[%clk 0:01:50]}  Kd3 {[%clk 0:00:15]} 32. Rxe6 {[%clk 0:01:51]}  Ra1 {[%clk 0:00:15]} 33. h5 {[%clk 0:01:51]}  Rh1+ {[%clk 0:00:08]} 34. Kg4 {[%clk 0:01:52]} 1-0


[Site "https://www.chess.com"]

[Event "Titled Tuesday Blitz June 13 Early 2023"]
[White "Hayrapetyan, Hovik"]
[Black "Gomez Barrera, Javiera Belen"]
[WhiteFideId "13302639"]
[BlackFideId "3418723"]
[WhiteElo "2348"]
[BlackElo "2119"]
[Result "1-0"]
[Round "4"]
[TimeControl "180+2"]
[Date "2023.06.13"]
[WhiteClock "0:00:46"]
[BlackClock "0:00:01"]
[Board "130"]

1. d4 {[%clk 0:03:00]}  Nf6 {[%clk 0:02:55]} 2. c4 {[%clk 0:02:50]}  e6 {[%clk 0:02:53]} 3. Nc3 {[%clk 0:02:50]}  d5 {[%clk 0:02:54]} 4. Nf3 {[%clk 0:02:49]}  c6 {[%clk 0:02:48]} 5. e3 {[%clk 0:02:49]}  Be7 {[%clk 0:02:48]} 6. Bd3 {[%clk 0:02:49]}  O-O {[%clk 0:02:48]} 7. O-O {[%clk 0:02:48]}  Nbd7 {[%clk 0:02:48]} 8. e4 {[%clk 0:02:47]}  dxe4 {[%clk 0:02:44]} 9. Nxe4 {[%clk 0:02:48]}  Nxe4 {[%clk 0:02:45]} 10. Bxe4 {[%clk 0:02:47]}  Nf6 {[%clk 0:02:46]} 11. Bc2 {[%clk 0:02:46]}  c5 {[%clk 0:02:44]} 12. Qd3 {[%clk 0:02:42]}  cxd4 {[%clk 0:02:42]} 13. Bg5 {[%clk 0:02:42]}  g6 {[%clk 0:02:39]} 14. Rad1 {[%clk 0:02:40]}  e5 {[%clk 0:02:36]} 15. Nxe5 {[%clk 0:02:33]}  Bf5 {[%clk 0:02:36]} 16. Qb3 {[%clk 0:02:32]}  Bxc2 {[%clk 0:02:21]} 17. Qxc2 {[%clk 0:02:33]}  Qa5 {[%clk 0:02:18]} 18. Bxf6 {[%clk 0:02:32]}  Bxf6 {[%clk 0:02:15]} 19. Nd7 {[%clk 0:02:32]}  Bg7 {[%clk 0:02:14]} 20. Nxf8 {[%clk 0:02:31]}  Rxf8 {[%clk 0:02:14]} 21. a3 {[%clk 0:02:30]}  Re8 {[%clk 0:02:07]} 22. Qd2 {[%clk 0:02:22]}  Qc5 {[%clk 0:02:04]} 23. Qd3 {[%clk 0:02:16]}  Rc8 {[%clk 0:01:57]} 24. Rc1 {[%clk 0:02:11]}  Qb6 {[%clk 0:01:43]} 25. b4 {[%clk 0:02:10]}  a5 {[%clk 0:01:40]} 26. c5 {[%clk 0:02:10]}  Qa7 {[%clk 0:01:36]} 27. Qc4 {[%clk 0:02:02]}  axb4 {[%clk 0:01:00]} 28. axb4 {[%clk 0:02:03]}  Bf6 {[%clk 0:01:00]} 29. Rfe1 {[%clk 0:01:53]}  Qa3 {[%clk 0:00:50]} 30. Qb5 {[%clk 0:01:44]}  d3 {[%clk 0:00:41]} 31. Rcd1 {[%clk 0:01:04]}  Rd8 {[%clk 0:00:35]} 32. Qxb7 {[%clk 0:00:48]}  d2 {[%clk 0:00:33]} 33. Rf1 {[%clk 0:00:48]}  Be5 {[%clk 0:00:09]} 34. c6 {[%clk 0:00:47]}  Rb8 {[%clk 0:00:01]} 35. c7 {[%clk 0:00:46]} 1-0


[Site "https://www.chess.com"]

[Event "Titled Tuesday Blitz June 13 Early 2023"]
[White "Makhnev, Denis"]
[Black "LeoLV10"]
[WhiteFideId "13707647"]
[WhiteElo "2515"]
[BlackElo "2422"]
[Result "1-0"]
[Round "4"]
[TimeControl "180+2"]
[Date "2023.06.13"]
[WhiteClock "0:00:18"]
[BlackClock "0:00:03"]
[Board "131"]

1. c4 {[%clk 0:02:55]}  c5 {[%clk 0:02:58]} 2. Nf3 {[%clk 0:02:54]}  Nc6 {[%clk 0:02:55]} 3. Nc3 {[%clk 0:02:55]}  Nf6 {[%clk 0:02:55]} 4. g3 {[%clk 0:02:54]}  e6 {[%clk 0:02:55]} 5. Bg2 {[%clk 0:02:54]}  g6 {[%clk 0:02:52]} 6. O-O {[%clk 0:02:53]}  Bg7 {[%clk 0:02:51]} 7. d4 {[%clk 0:02:53]}  cxd4 {[%clk 0:02:51]} 8. Nxd4 {[%clk 0:02:54]}  O-O {[%clk 0:02:51]} 9. Ndb5 {[%clk 0:02:52]}  a6 {[%clk 0:02:35]} 10. Nd6 {[%clk 0:02:51]}  Ne8 {[%clk 0:02:35]} 11. Bf4 {[%clk 0:02:46]}  e5 {[%clk 0:02:34]} 12. Be3 {[%clk 0:02:44]}  Nxd6 {[%clk 0:02:32]} 13. Qxd6 {[%clk 0:02:42]}  Qf6 {[%clk 0:02:32]} 14. Ne4 {[%clk 0:02:38]}  Qxd6 {[%clk 0:02:28]} 15. Nxd6 {[%clk 0:02:39]}  Bf6 {[%clk 0:02:23]} 16. Bb6 {[%clk 0:02:33]}  Be7 {[%clk 0:02:22]} 17. c5 {[%clk 0:02:31]}  Nd4 {[%clk 0:02:18]} 18. e3 {[%clk 0:02:27]}  Ne6 {[%clk 0:02:05]} 19. Rfd1 {[%clk 0:02:25]}  Bd8 {[%clk 0:01:57]} 20. b4 {[%clk 0:02:15]}  Kg7 {[%clk 0:01:41]} 21. Nxc8 {[%clk 0:01:50]}  Rxc8 {[%clk 0:01:38]} 22. Rxd7 {[%clk 0:01:49]}  Bxb6 {[%clk 0:01:28]} 23. cxb6 {[%clk 0:01:50]}  Rc4 {[%clk 0:01:27]} 24. a3 {[%clk 0:01:47]}  Rc2 {[%clk 0:01:23]} 25. Bxb7 {[%clk 0:01:44]}  Rb8 {[%clk 0:01:22]} 26. Bxa6 {[%clk 0:01:39]}  Rxb6 {[%clk 0:01:21]} 27. Bd3 {[%clk 0:01:36]}  Rd2 {[%clk 0:01:18]} 28. Bb5 {[%clk 0:01:35]}  Rc2 {[%clk 0:01:13]} 29. a4 {[%clk 0:01:26]}  Ng5 {[%clk 0:01:13]} 30. Rad1 {[%clk 0:01:09]}  Rf6 {[%clk 0:01:11]} 31. h4 {[%clk 0:00:40]}  Nh3+ {[%clk 0:00:20]} 32. Kg2 {[%clk 0:00:39]}  Nxf2 {[%clk 0:00:12]} 33. R1d2 {[%clk 0:00:39]}  Rxd2 {[%clk 0:00:11]} 34. Rxd2 {[%clk 0:00:38]}  Ng4 {[%clk 0:00:12]} 35. Re2 {[%clk 0:00:35]}  Rd6 {[%clk 0:00:12]} 36. a5 {[%clk 0:00:32]}  f5 {[%clk 0:00:11]} 37. a6 {[%clk 0:00:31]}  Rd8 {[%clk 0:00:11]} 38. e4 {[%clk 0:00:29]}  fxe4 {[%clk 0:00:09]} 39. Bc6 {[%clk 0:00:24]}  e3 {[%clk 0:00:06]} 40. a7 {[%clk 0:00:24]}  Rd2 {[%clk 0:00:06]} 41. Kf3 {[%clk 0:00:20]}  e4+ {[%clk 0:00:05]} 42. Bxe4 {[%clk 0:00:19]}  Ne5+ {[%clk 0:00:04]} 43. Kxe3 {[%clk 0:00:19]}  Nc4+ {[%clk 0:00:04]} 44. Kf2 {[%clk 0:00:19]}  Rd8 {[%clk 0:00:03]} 45. a8=Q {[%clk 0:00:19]}  Rxa8 {[%clk 0:00:04]} 46. Bxa8 {[%clk 0:00:19]}  Nd6 {[%clk 0:00:03]} 47. Bc6 {[%clk 0:00:18]} 1-0


[Site "https://www.chess.com"]

[Event "Titled Tuesday Blitz June 13 Early 2023"]
[White "Miller, Luke C"]
[Black "Altman, Joshua"]
[WhiteFideId "2096935"]
[BlackFideId "426210"]
[WhiteElo "1836"]
[BlackElo "2028"]
[Result "0-1"]
[Round "4"]
[TimeControl "180+2"]
[Date "2023.06.13"]
[WhiteClock "0:00:00"]
[BlackClock "0:00:30"]
[Board "136"]

1. e4 {[%clk 0:02:57]}  e6 {[%clk 0:03:00]} 2. d4 {[%clk 0:02:56]}  d5 {[%clk 0:03:00]} 3. Nc3 {[%clk 0:02:57]}  Nf6 {[%clk 0:02:59]} 4. e5 {[%clk 0:02:55]}  Nfd7 {[%clk 0:02:59]} 5. f4 {[%clk 0:02:56]}  c5 {[%clk 0:03:00]} 6. Nf3 {[%clk 0:02:56]}  Nc6 {[%clk 0:03:00]} 7. Be3 {[%clk 0:02:57]}  a6 {[%clk 0:03:00]} 8. Qd2 {[%clk 0:02:57]}  b5 {[%clk 0:03:01]} 9. Be2 {[%clk 0:02:57]}  Be7 {[%clk 0:02:59]} 10. O-O {[%clk 0:02:56]}  O-O {[%clk 0:02:59]} 11. Nd1 {[%clk 0:02:56]}  b4 {[%clk 0:02:59]} 12. Nf2 {[%clk 0:02:50]}  a5 {[%clk 0:02:58]} 13. c3 {[%clk 0:02:46]}  Ba6 {[%clk 0:02:57]} 14. Nd3 {[%clk 0:02:36]}  bxc3 {[%clk 0:02:52]} 15. bxc3 {[%clk 0:02:35]}  cxd4 {[%clk 0:02:50]} 16. cxd4 {[%clk 0:02:32]}  Nb6 {[%clk 0:02:50]} 17. Nc5 {[%clk 0:02:14]}  Bxe2 {[%clk 0:02:40]} 18. Qxe2 {[%clk 0:02:13]}  Nc4 {[%clk 0:02:37]} 19. Rab1 {[%clk 0:01:46]}  Rc8 {[%clk 0:02:26]} 20. Rfc1 {[%clk 0:01:29]}  Nxd4 {[%clk 0:02:17]} 21. Bxd4 {[%clk 0:01:20]}  Bxc5 {[%clk 0:02:17]} 22. Bxc5 {[%clk 0:01:12]}  Rxc5 {[%clk 0:02:18]} 23. f5 {[%clk 0:01:04]}  exf5 {[%clk 0:02:05]} 24. Nd4 {[%clk 0:01:02]}  Qg5 {[%clk 0:01:28]} 25. e6 {[%clk 0:00:46]}  fxe6 {[%clk 0:00:47]} 26. Qxe6+ {[%clk 0:00:34]}  Kh8 {[%clk 0:00:46]} 27. Rf1 {[%clk 0:00:09]}  Ne3 {[%clk 0:00:36]} 28. Rf2 {[%clk 0:00:02]}  h6 {[%clk 0:00:32]} 29. Qe5 {[%clk 0:00:00]}  Ng4 {[%clk 0:00:30]} 0-1


[Site "https://www.chess.com"]

[Event "Titled Tuesday Blitz June 13 Early 2023"]
[White "Perez, Maximiliano"]
[Black "Gulkov, Igor A."]
[WhiteFideId "117234"]
[BlackFideId "4120973"]
[WhiteElo "2334"]
[BlackElo "2343"]
[Result "1-0"]
[Round "4"]
[TimeControl "180+2"]
[Date "2023.06.13"]
[WhiteClock "0:00:21"]
[BlackClock "0:00:00"]
[Board "140"]

1. e4 {[%clk 0:03:00]}  c5 {[%clk 0:02:59]} 2. Nf3 {[%clk 0:03:00]}  d6 {[%clk 0:02:59]} 3. d4 {[%clk 0:03:01]}  cxd4 {[%clk 0:02:59]} 4. Nxd4 {[%clk 0:03:02]}  Nf6 {[%clk 0:02:59]} 5. Nc3 {[%clk 0:03:02]}  a6 {[%clk 0:03:00]} 6. Be2 {[%clk 0:03:03]}  e5 {[%clk 0:02:59]} 7. Nb3 {[%clk 0:03:03]}  Be7 {[%clk 0:02:59]} 8. Be3 {[%clk 0:03:04]}  Be6 {[%clk 0:02:56]} 9. Nd5 {[%clk 0:03:04]}  Nbd7 {[%clk 0:02:55]} 10. Qd3 {[%clk 0:03:03]}  Bxd5 {[%clk 0:02:51]} 11. exd5 {[%clk 0:03:04]}  O-O {[%clk 0:02:51]} 12. g4 {[%clk 0:03:05]}  Ne8 {[%clk 0:02:50]} 13. h4 {[%clk 0:03:03]}  a5 {[%clk 0:02:46]} 14. O-O-O {[%clk 0:03:00]}  a4 {[%clk 0:02:42]} 15. Nd2 {[%clk 0:03:00]}  Nc5 {[%clk 0:02:41]} 16. Qf5 {[%clk 0:02:57]}  g6 {[%clk 0:02:39]} 17. Qf3 {[%clk 0:02:52]}  f5 {[%clk 0:01:56]} 18. Bxc5 {[%clk 0:02:40]}  dxc5 {[%clk 0:01:55]} 19. gxf5 {[%clk 0:02:39]}  gxf5 {[%clk 0:01:55]} 20. Rdg1+ {[%clk 0:02:36]}  Kh8 {[%clk 0:01:55]} 21. Nc4 {[%clk 0:02:31]}  Bd6 {[%clk 0:01:49]} 22. Rg5 {[%clk 0:02:22]}  Qf6 {[%clk 0:01:45]} 23. Nxd6 {[%clk 0:02:19]}  Nxd6 {[%clk 0:01:44]} 24. Rhg1 {[%clk 0:02:18]}  a3 {[%clk 0:01:41]} 25. b3 {[%clk 0:02:05]}  e4 {[%clk 0:01:22]} 26. Qh5 {[%clk 0:02:05]}  Rae8 {[%clk 0:01:13]} 27. Kd1 {[%clk 0:01:28]}  e3 {[%clk 0:01:09]} 28. Ke1 {[%clk 0:01:06]}  exf2+ {[%clk 0:00:59]} 29. Kxf2 {[%clk 0:01:07]}  Ne4+ {[%clk 0:00:58]} 30. Kf3 {[%clk 0:01:07]}  Nxg5+ {[%clk 0:00:58]} 31. hxg5 {[%clk 0:01:07]}  Qe5 {[%clk 0:00:55]} 32. Bd3 {[%clk 0:01:05]}  Qe3+ {[%clk 0:00:51]} 33. Kg2 {[%clk 0:01:05]}  Qd2+ {[%clk 0:00:51]} 34. Kh1 {[%clk 0:01:05]}  Re1 {[%clk 0:00:45]} 35. g6 {[%clk 0:01:00]}  Rxg1+ {[%clk 0:00:43]} 36. Kxg1 {[%clk 0:01:01]}  h6 {[%clk 0:00:33]} 37. Kf1 {[%clk 0:00:44]}  Kg7 {[%clk 0:00:30]} 38. d6 {[%clk 0:00:41]}  Qg5 {[%clk 0:00:28]} 39. Qf3 {[%clk 0:00:35]}  Qxg6 {[%clk 0:00:26]} 40. Qxb7+ {[%clk 0:00:35]}  Rf7 {[%clk 0:00:26]} 41. d7 {[%clk 0:00:30]}  Qd6 {[%clk 0:00:21]} 42. Qg2+ {[%clk 0:00:25]}  Kf8 {[%clk 0:00:20]} 43. Qa8+ {[%clk 0:00:25]}  Kg7 {[%clk 0:00:19]} 44. d8=Q {[%clk 0:00:25]}  Qf4+ {[%clk 0:00:08]} 45. Ke2 {[%clk 0:00:25]}  Qh2+ {[%clk 0:00:06]} 46. Kd1 {[%clk 0:00:24]}  Qh5+ {[%clk 0:00:00]} 47. Be2 {[%clk 0:00:21]} 1-0


[Site "https://www.chess.com"]